Cogmind - Beta 17.1 @@@ ROGUE MODE // 2026.09.07 @ 01:29:30 Player: LandRaider Result: Destroyed by G-50 Soldier with Heavy Laser Performance ------------- Evolutions (3) 1500 Regions Visited (4) 800 Robots Destroyed (127) 635 Value Destroyed (3639) 3639 Prototype IDs (11) 220 Alien Tech Used (0) 0 Bonus (8693) 8693 TOTAL SCORE: 15487 Bonus ------- High Alert Combat Kills 553 Follower Combat Kills 35 Prayed to X0-1V1 5000 Major X0-1V1 Interference 3150 Friendly Fire -45 Cogmind --------- Core Integrity 0/550 Matter 300/300 Energy 1500/1500 System Corruption 20% Temperature Warm (155) Movement Core (1400) Ox27 Location -7/Factory Parts ------- > --- POWER (1) -------- (None) > --- PROPULSION (4) --- (None) > --- UTILITY (6) ------ Huge Storage Unit Improved Signal Interpreter Improved Terrain Scan Processor X0-1V1's Piety Tracker > --- WEAPON (2) ------- Maul (fused) > --- INVENTORY (25) --- Cooled Ion Engine Light Treads Cryofiber Web Improved Heat Sink Improved Heat Sink Large Storage Unit Large Matter Pod (150) Machine Analyzer Active Sensor Suite Improved Terrain Scanner Seismic Detector Transmission Jammer Improved Trap Extractor (0/6) Improved Medium Laser Improved Medium Laser Ion Cannon Advanced Assault Cannon Gauss Cannon Advanced EMP Blaster Peak State ------------ > --- POWER ------------ Enhanced Nuclear Core > --- PROPULSION ------- Armored Huge Wheel Armored Huge Wheel > --- UTILITY ---------- Cryofiber Web Advanced Heat Sink Huge Storage Unit Improved Signal Interpreter Improved Terrain Scan Processor X0-1V1's Piety Tracker > --- WEAPON ----------- Advanced Assault Cannon Gauss Cannon > --- INVENTORY -------- Heavy Ion Engine Light Treads Light Treads Improved Treads Armored Treads Advanced Treads Improved Heat Sink Large Storage Unit Large Matter Pod Machine Analyzer Improved Sensor Array Active Sensor Suite Improved Terrain Scanner Seismic Detector Transmission Jammer Medium Armor Plating Ion Cannon Ion Cannon Advanced Assault Cannon Gauss Cannon Advanced EMP Blaster Improved Grenade Launcher Lance [Rating: 65] Favorites ----------- Power Light Ion Engine Engine Light Ion Engine Power Core Light Nuclear Core Propulsion Improved Treads Treads Improved Treads Wheel Armored Wheel Hover Unit Aerolev Unit Flight Unit Improved VTOL Module Utility Huge Storage Unit Device X0-1V1's Piety Tracker Storage Huge Storage Unit Processor Improved Terrain Scan Processor Protection Improved Light Armor Plating Weapon Grenade Launcher Energy Gun Advanced Beam Rifle Energy Cannon Ion Cannon Ballistic Gun Light Assault Rifle Ballistic Cannon Gauss Cannon Launcher Grenade Launcher Impact Weapon Hammer Build | -11 -10 -10 -8 -7 ------- Run | Yrd Mat Sub Mat Fac Slots Evolved 6 | . . . 4 2 Power . | . . . . . Propulsion 2 | . . . 1 1 Utility 4 | . . . 3 1 Weapon . | . . . . . Parts Attached 79 | 7 7 . 34 31 Power 11 | 1 . . 6 4 Engine 7 | 1 . . 4 2 Core 4 | . . . 2 2 Reactor . | . . . . . Propulsion 25 | 2 4 . 9 10 Treads 13 | 2 4 . 4 3 Leg . | . . . . . Wheel 10 | . . . 3 7 Hover 1 | . . . 1 . Flight 1 | . . . 1 . Utility 22 | 2 2 . 9 9 Device 14 | 1 . . 6 7 Storage 3 | 1 2 . . . Processor 2 | . . . 1 1 Hackware . | . . . . . Protection 3 | . . . 2 1 Artifact . | . . . . . Weapon 21 | 2 1 . 10 8 Energy Gun 5 | . . . 3 2 Energy Cannon 4 | . . . 3 1 Ballistic Gun 2 | 2 . . . . Ballistic Cannon 5 | . . . . 5 Launcher 3 | . 1 . 2 . Special Weapon . | . . . . . Impact Weapon 2 | . . . 2 . Slashing Weapon . | . . . . . Piercing Weapon . | . . . . . Special Melee Weapon . | . . . . . Unidentified Prototypes 9 | . . . 6 3 Parts Lost 29 | . . . 5 24 Power 4 | . . . 2 2 Propulsion 11 | . . . . 11 Utility 9 | . . . 2 7 Weapon 5 | . . . 1 4 Highest Loss Streak 8 | . . . 1 8 To Critical Strikes . | . . . . . Average Backups 17 | 3 9 15 18 22 Power 1 | . 1 1 . 1 Propulsion 4 | 1 2 4 5 5 Utility 7 | . 2 8 7 9 Weapon 4 | . 2 2 4 6 Tool/Special . | . . . . . Unused Backups 27 | . 4 . 8 15 Power 3 | . 1 . . 2 Propulsion 7 | . 3 . 2 2 Utility 8 | . . . 2 6 Weapon 9 | . . . 4 5 Tool/Special . | . . . . . Average Slot Usage (%) 95 | . 100 100 96 92 Engine 7 | . 14 14 5 3 Core 2 | . . . 3 2 Treads 20 | . 28 28 17 17 Wheel 5 | . . . 8 7 Device 18 | . 14 14 21 20 Storage 9 | . 14 14 9 7 Processor 8 | . . . 5 14 Protection 2 | . . . 6 1 Energy Gun 2 | . . . 6 1 Energy Cannon 1 | . . . 3 2 Ballistic Gun 5 | . 18 14 . . Ballistic Cannon 3 | . . . . 7 Launcher 5 | . 9 14 5 2 Peak Build Rating 65 | 7 12 12 43 65 Average Rating 36 | 5 8 12 37 54 On Entrance 12 | . 7 12 12 33 Avg Prop Armor Cover (%) 13 | . . . . 13 Naked Turns . | . . . . . Heaviest Build 111 | 12 88 28 105 111 Greatest Support 93 | 40 46 46 69 93 Greatest Overweight (x) 7 | . 2 . 7 4 Average Overweight (x) 1 | . . . 1 1 Largest Inventory Capacity 25 | 8 25 15 25 25 Average Capacity 21 | 7 19 15 21 25 Most Carried 25 | 5 15 15 25 25 Average Carried 18 | 3 9 15 18 24 Final Capacity 25 | 8 15 15 25 25 Final Carried 25 | 5 15 15 25 21 Class Distribution -------------------- 94% | Mutant 5% | Scavenger-Mutant Dominant Class ---------------- Mutant | -10/Materials Mutant | -10/Subcaves Mutant | -8/Materials Mutant | -7/Factory Resources | -11 -10 -10 -8 -7 ----------- Run | Yrd Mat Sub Mat Fac Matter Collected 3582 | 350 115 3 1087 2027 Remotely . | . . . . . Salvage Created 3516 | 234 248 6 1266 1762 Parts 207 | 20 20 6 83 78 Haulers Intercepted 9 | . 2 . 5 2 Recyclers Shooed 1 | . . . 1 . Parts Field Recycled . | . . . . . Retrieved Matter . | . . . . . Parts Self-Destructed 5 | . . 5 . . Prevented . | . . . . . Parts Restored . | . . . . . Kills | -11 -10 -10 -8 -7 ------- Run | Yrd Mat Sub Mat Fac Combat Hostiles Destroyed 79 | . 9 3 30 37 Guns 14 | . 2 . 6 6 Cannons 29 | . . . 6 23 AOE 35 | . 7 3 18 7 Classes Destroyed 16 | 3 5 . 3 5 Worker 15 | 2 1 . 2 10 Builder 4 | . . . 2 2 Tunneler 6 | 4 . . . 2 Hauler 9 | . 2 . 5 2 Recycler 5 | 1 . . 2 2 Mechanic 1 | . . . 1 . Operator 1 | . 1 . . . Watcher 8 | . 2 . 3 3 Swarmer 22 | . 6 3 13 . Grunt 41 | . 3 . 12 26 Brawler 1 | . . . . 1 Sentry 7 | . . . 5 2 Hunter 1 | . . . . 1 Programmer 5 | . . . . 5 Heavy 1 | . . . . 1 Assembled 2 | . . . . 2 Best Kill Streak 14 | 4 4 3 9 14 Combat Bots Only 5 | . 3 3 5 5 Max Kills in Single Turn 3 | 1 3 2 3 2 Gunslinging . | . . . . . Exploded 3 | . 3 2 2 2 Melee . | . . . . . Uniques/NPCs Destroyed . | . . . . . Combat | -11 -10 -10 -8 -7 -------- Run | Yrd Mat Sub Mat Fac Hostile Shots Fired 543 | . 31 1 140 371 Missed 172 | . 11 . 51 110 Hits 371 | . 20 1 89 261 Melee 5 | . . . . 5 Projectile 366 | . 20 1 89 256 AOE 1 | . . . . 1 Critical Strikes 12 | . . . 4 8 Part Disruptions 1 | . . . . 1 Damage Taken 5965 | . 304 6 1340 4315 Core 846 | . 15 . 131 700 Absorbed by Shields 20 | . . . . 20 Core Remaining (%) 90 | 100 . 94 76 . Volleys Fired 382 | 20 41 3 124 194 Largest 2 | 2 2 1 2 2 Hottest 136 | 40 40 30 129 136 Shots Fired 554 | 40 59 3 158 294 Gun 191 | 40 36 . 58 57 Cannon 273 | . . . 64 209 Launcher 90 | . 23 3 36 28 Special . | . . . . . Kinetic 233 | 40 36 . . 157 Thermal 231 | . . . 122 109 Explosive 90 | . 23 3 36 28 Electromagnetic . | . . . . . Robot Hit Streak 14 | 10 9 . 7 14 Robot Miss Streak 5 | 3 2 1 5 4 Penetration Max . | . . . . . Secondary Targets . | . . . . . Shots Hit Robots 294 | 23 30 . 77 164 Core Hits 203 | 9 21 3 86 84 Critical Kills . | . . . . . Critical Parts Destroyed . | . . . . . Critical Strikes 19 | . . . 2 17 Burn 5 | . . . 2 3 Blast 14 | . . . . 14 Melee Attacks 15 | . . . 15 . Impact 15 | . . . 15 . Slashing . | . . . . . Piercing . | . . . . . Sneak Attacks 1 | . . . 1 . Combat Hostiles . | . . . . . Follow-up Attacks . | . . . . . Damage Inflicted 10831 | 249 1153 147 3378 5904 Guns 1967 | 249 282 . 620 816 Cannons 3862 | . . . 768 3094 Explosions 4872 | . 871 147 1915 1939 Melee 62 | . . . 62 . Ramming 68 | . . . 13 55 Kinetic 2990 | 249 282 . . 2459 Thermal 3186 | . . . 1388 1798 Explosive 4439 | . 871 147 1915 1506 Electromagnetic 86 | . . . . 86 Impact 62 | . . . 62 . Slashing . | . . . . . Piercing . | . . . . . Highest Corruption 22 | . . . . 22 Average Corruption 8 | . . . . 8 Corruption Purged 4 | . . . . 4 Corruption Blocked . | . . . . . Effects 62 | . . . . 62 Message Errors 19 | . . . . 19 Matter Fused 18 | . . . . 18 Heat Flow Errors 7 | . . . . 7 Energy Discharges 3 | . . . . 3 Parts Rejected 1 | . . . . 1 Data Loss (minor) 6 | . . . . 6 Data Loss (major) 1 | . . . . 1 Misfires 2 | . . . . 2 Alerts 2 | . . . . 2 Weapon Failures 3 | . . . . 3 Overload Shots . | . . . . . Overflow Damage 343 | . 41 . 69 233 Projectiles 89 | . . . 2 87 Explosions 232 | . 41 . 67 124 Melee 22 | . . . . 22 Knockbacks 28 | . . . . 28 Impact 1 | . . . . 1 Kinetic 26 | . . . . 26 Secondary 1 | . . . . 1 Self-Inflicted Damage 249 | . 52 . 102 95 Shots 12 | . 4 . 6 2 Rammed 6 | . . . 2 4 Targets Rammed 6 | . . . 2 4 Kicked . | . . . . . Crushed . | . . . . . Highest Temperature 350 | . 25 . 350 318 Average Temperature 78 | . 11 . 79 83 Received Heat Transfer 2205 | . 120 . 585 1500 Effects 1 | . . . 1 . Shutdowns 1 | . . . 1 . Siege Activations . | . . . . . Martial Activations . | . . . . . Shielding Activations . | . . . . . Robots Disrupted . | . . . . . Combat Hostiles . | . . . . . Robots Corrupted 1 | . . . . 1 Combat Hostiles . | . . . . . Parts Fried 3 | . . . . 3 Impact Corruptions 1 | . . . . 1 Robots Melted 1 | . . . . 1 Combat Hostiles 1 | . . . . 1 Parts Melted 14 | . . . 3 11 Heat Transferred 5528 | . . . 2516 3012 Parts Sabotaged . | . . . . . Parts Stolen . | . . . . . Parts Stripped . | . . . . . Power Chain Reactions 1 | . . . . 1 Alert | -11 -10 -10 -8 -7 ------- Run | Yrd Mat Sub Mat Fac Maximum Alert Level 4 | . . . 2 4 Low Security (%) 40 | 100 100 . 50 . Level 1 28 | . . . 43 37 Level 2 12 | . . . 6 22 Level 3 11 | . . . . 25 Level 4 6 | . . . . 14 Level 5 . | . . . . . High Security . | . . . . . Max Security . | . . . . . Sterilizations 1 | . . . 1 . Peak Influence 1271 | 15 180 . 566 1271 Initial 252 | . 3 . 38 252 Average 377 | 3 43 . 205 671 Influence Increases 3720 | 35 495 70 1227 1893 Destroy 0b10 Robot/C 1580 | . 180 60 600 740 Destroy 0b10 Robot/NC 245 | 35 30 . 75 105 Destroy Leader 352 | . 48 10 126 168 Allied During Kill 11 | . . . . 11 Successful Hack 58 | . 46 . . 12 Select Force Hacks 60 | . . . . 60 Disable Machine 630 | . 45 . 120 465 Destroy Structure 529 | . 131 . 216 182 Lose Combat Pursuer 255 | . 15 . 90 150 Influence Decreases 2523 | 30 338 158 745 1252 Entered New Map 420 | . 2 78 36 304 Time Decay 1520 | 30 336 80 436 638 Lost Part 290 | . . . 50 240 Lost Ally 70 | . . . . 70 Purge Threat 223 | . . . 223 . Squads Dispatched 20 | . 1 . 4 15 Investigation 4 | . . . . 4 Extermination 5 | . . . . 5 Reinforcement 10 | . 1 . 4 5 Assault 1 | . . . . 1 Garrison . | . . . . . Intercept . | . . . . . Searches Triggered . | . . . . . Construction Impeded 5 | . . . 2 3 Haulers Reinforced 1 | . . . . 1 Active Scanning Responses . | . . . . . Cargo Convoy Interrupts . | . . . . . Stealth | -11 -10 -10 -8 -7 --------- Run | Yrd Mat Sub Mat Fac Distress Signals 8 | . 2 . 6 . Communications Jammed . | . . . . . Distress Signals . | . . . . . Times Spotted 133 | . 17 1 48 67 Peak Tracking Total 8 | . 4 1 6 8 Tactical Retreats 11 | . 1 . 4 6 Traps | -11 -10 -10 -8 -7 ------- Run | Yrd Mat Sub Mat Fac Traps Triggered 2 | . . . . 2 Indirectly 1 | . . . . 1 Trap Hack Attempts . | . . . . . Triggered . | . . . . . Disarmed . | . . . . . Reprogrammed . | . . . . . Reused . | . . . . . Traps Extracted . | . . . . . Installed . | . . . . . Triggered . | . . . . . Machines | -11 -10 -10 -8 -7 ---------- Run | Yrd Mat Sub Mat Fac Machines Disabled 42 | . 3 . 8 31 Max in Single Turn 6 | . 2 . 2 6 Machines Repaired . | . . . . . Machines Dismantled . | . . . . . Machines Sabotaged . | . . . . . Overloaded Fab Kills . | . . . . . Hacking | -11 -10 -10 -8 -7 --------- Run | Yrd Mat Sub Mat Fac Machines Accessed 17 | . 6 . 2 9 Terminals 13 | . 6 . 2 5 Fabricators 1 | . . . . 1 Repair Stations . | . . . . . Recycling Units 2 | . . . . 2 Scanalyzers 1 | . . . . 1 Garrison Access . | . . . . . Total Hacks 39 | . 17 . 3 19 Successful 17 | . 10 . 2 5 Failed 22 | . 7 . 1 14 Catastrophic 6 | . 2 . 1 3 Database Lockouts . | . . . . . Manual 18 | . 6 . . 12 Terminals 31 | . 17 . 3 11 Fabricators 2 | . . . . 2 Repair Stations . | . . . . . Recycling Units 3 | . . . . 3 Scanalyzers 3 | . . . . 3 Garrison Access . | . . . . . Terminal Hacks 9 | . 6 . 2 1 Record 1 | . 1 . . . Prototype ID Bank 1 | . 1 . . . Branch Access Points 2 | . 1 . . 1 Emergency Access Points 1 | . 1 . . . Alert Level 1 | . 1 . . . Unreport Threat 2 | . . . 2 . Locate Traps 1 | . 1 . . . Fabricator Hacks 1 | . . . . 1 Network Status 1 | . . . . 1 Repair Station Hacks . | . . . . . Recycling Unit Hacks . | . . . . . Scanalyzer 1 | . . . . 1 Retrieve Study 1 | . . . . 1 Garrison Access Hacks . | . . . . . Unauthorized Hacks 6 | . 4 . . 2 Terminals 4 | . 4 . . . Botnet 4 | . 4 . . . Fabricators . | . . . . . Repair Stations . | . . . . . Recycling Units 2 | . . . . 2 Tunnel 2 | . . . . 2 Scanalyzers . | . . . . . Garrison Access . | . . . . . Data Cores Recovered . | . . . . . Used . | . . . . . Hacking Detections 15 | . 6 . 2 7 Full Trace Events 2 | . 1 . . 1 Feedback Events 1 | . . . . 1 Corruption 1 | . . . . 1 Feedback Blocked . | . . . . . Robot Schematics Acquired . | . . . . . Robots Built . | . . . . . Authchips . | . . . . . Time . | . . . . . Total Robot Build Rating . | . . . . . Part Schematics Acquired . | . . . . . Parts Built . | . . . . . Authchips . | . . . . . Time . | . . . . . Total Part Build Rating . | . . . . . Part Studies Acquired 1 | . . . . 1 Parts Repaired . | . . . . . Time . | . . . . . Parts Recycled . | . . . . . Recycled Matter . | . . . . . Retrieved Matter . | . . . . . Retrieved Components . | . . . . . Parts Scanalyzed . | . . . . . Part Schematics Acquired . | . . . . . Parts Damaged . | . . . . . Bothacking | -11 -10 -10 -8 -7 ------------ Run | Yrd Mat Sub Mat Fac Used RIF Installer . | . . . . . Robots Hacked . | . . . . . Non-combat . | . . . . . Combat . | . . . . . Robot Hacks Applied . | . . . . . Relay Couplers Released . | . . . . . Fabnet Peak Effective % . | . . . . . Robots Rewired 3 | . . . . 3 Allies Hacked 2 | . . . . 2 Hacks Repelled . | . . . . . Allies | -11 -10 -10 -8 -7 -------- Run | Yrd Mat Sub Mat Fac Total Allies 5 | . . . . 5 Largest Group 3 | . . . . 3 Highest-Rated Group 68 | . . . . 68 Highest-Rated Ally 40 | . . . . 40 Total Orders . | . . . . . Ally Attacks 31 | . . . . 31 Total Damage 378 | . . . . 378 Kills 6 | . . . . 6 Allies Corrupted 2 | . . . . 2 Allies Melted . | . . . . . X0-1V1 Amusement Gains 126 | . 6 . 10 110 Average Entertainment 23 | . 6 3 1 37 Good Acts 15 | . . . 5 10 Bad Acts 21 | . . 1 8 12 Intel | -11 -10 -10 -8 -7 ------- Run | Yrd Mat Sub Mat Fac Active Infowar (turns) 3811 | 15 1196 174 968 1458 Sensors 1470 | . . . 12 1458 Terrain 885 | . . . 885 . Seismic 1824 | 15 1196 174 439 . Robot Analysis Total . | . . . . . Derelict Logs Recovered . | . . . . . Drone Launches . | . . . . . Drone Recoveries . | . . . . . Exploration | -11 -10 -10 -8 -7 ------------- Run | Yrd Mat Sub Mat Fac Turns Passed 5019 | 159 1196 174 1213 2277 Spaces Moved 2018 | 57 474 106 453 928 Core 2 | 2 . . . . Treads 1378 | 55 474 106 281 462 Legs . | . . . . . Wheels 638 | . . . 172 466 Hover . | . . . . . Flight . | . . . . . Fastest Speed 50 | 50 160 160 120 115 Average Speed 183 | 156 226 160 165 174 Slowest Speed 320 | 160 320 160 320 280 Overloaded Moves . | . . . . . Propulsion Burnouts . | . . . . . Robots Hopped . | . . . . . Potential Cave-ins 10 | . . . 1 9 Cave-ins Triggered . | . . . . . Exploration Rate (%) 33 | 3 87 4 43 28 Regions Visited 4 Branch Regions 1 Pre-discovered Areas 2 | . . . . 2 Known Exits Taken . | . . . . . Unknown Exits Taken 4 | 1 1 1 1 . Scrap Searched . | . . . . . Spaces Dug 9 | . . . 4 5 Terrain Destroyed 647 | . 153 13 257 224 Melee 4 | . . . 4 . Projectile 52 | . . . 11 41 AOE 591 | . 153 13 242 183 Terrain Rammed . | . . . . . Walls Destroyed . | . . . . . Machines Disabled . | . . . . . Actions | -11 -10 -10 -8 -7 --------- Run | Yrd Mat Sub Mat Fac Total 2762 | 88 543 108 737 1286 Wait 83 | . 1 . 34 48 Move 2014 | 56 473 105 452 928 Hop . | . . . . . Pick Up 65 | 5 13 . 29 18 Fast Attach 38 | 7 . . 13 18 Attach 29 | . . . 10 19 Detach 12 | . . . 3 9 Swap 49 | . 7 . 26 16 Drop 63 | . 8 . 29 26 Fire 382 | 20 41 3 124 194 Melee 15 | . . . 15 . Ram 2 | . . . 1 1 Kick . | . . . . . Crush 4 | . . . 1 3 Escape Stasis . | . . . . . Rewire 6 | . . . . 6 Trap . | . . . . . Miscellaneous . | . . . . . Route ------- -11/Scrapyard -10/Materials (discovered 5 exits: [*Mat x3] / *Min / [*Sub]) -10/Subcaves -8/Materials (discovered 2 exits: *Fac x2) -7/Factory (discovered 3 exits: Sto / Low x2) History --------- Turn | Location | Event 30 | -11/Scrapyard | Discovered new exit (range 14) 160 | -11/Scrapyard | Entered Materials 310 | -10/Materials | Build established: Mutant 337 | -10/Materials | Discovered new exit (range 16) 463 | -10/Materials | Discovered new exit (range 11) 617 | -10/Materials | Discovered new exit (range 13) 927 | -10/Materials | Identified exit to Mines 946 | -10/Materials | Discovered new exit (range 4) 1332 | -10/Materials | Discovered new exit (range 11) 1348 | -10/Materials | Prayed at D.C.S.S. Altar Unit 1356 | -10/Materials | Entered Subcaves 1376 | -10/Subcaves | Discovered new exit (range 9) 1530 | -10/Subcaves | Entered Materials 1530 | -8/Materials | Evolved 4 slots: Propulsion x1, Utility x3 2079 | -8/Materials | Discovered new exit (range 9) 2553 | -8/Materials | X0-1V1 upgraded hostiles (x1) 2607 | -8/Materials | X0-1V1 made a cryptic comment about sterilization and BL-4Z3 2696 | -8/Materials | Discovered new exit (range 3) 2723 | -8/Materials | Sterilization system engaged 2723 | -8/Materials | Non-combat units ordered to evacuate 2743 | -8/Materials | Entered Factory 2743 | -7/Factory | Evolved 2 slots: Propulsion x1, Utility x1 3181 | -7/Factory | Found Prototype Device 3245 | -7/Factory | Lost 6 parts (3n2u1w) 3418 | -7/Factory | X0-1V1 activates XOMVISION 3502 | -7/Factory | X0-1V1 foreshadows a heat wave 3695 | -7/Factory | Energy capacity permanently improved by X0-1V1 (+300; -150 max core) 3747 | -7/Factory | Ambient heat levels rising (+10) 3934 | -7/Factory | Ambient heat levels rising (+10) 4177 | -7/Factory | Identified exit to Storage 4177 | -7/Factory | Identified exit to Lower Caves 4250 | -7/Factory | System corruption reached 10% 4277 | -7/Factory | Ambient heat levels falling (-10) 4431 | -7/Factory | Ambient heat levels falling (-10) 4594 | -7/Factory | X0-1V1 sent allied Scrapper (x2) 4666 | -7/Factory | Core integrity fell below 50% 4743 | -7/Factory | First assault squad dispatched 4993 | -7/Factory | Core integrity fell below 20% 5020 | -7/Factory | Destroyed by G-50 Soldier with Heavy Laser Last Messages --------------- 04993_ Acquired 30 matter. 04999_ Imp. Treads severed. 05000_ Critical hit (Burn: +37). 05001_ Lgt. Treads+ destroyed. 05003_ Ion Cannon destroyed. 05005_ Acquired 13 matter. 05008_ Acquired 11 matter. 05009_ Adv. Heat Sink destroyed. 05012_ System corrupted: Heat flow error (+257). 05013_ Med. Treads destroyed. 05013_ Critical hit (Burn: +37). 05014_ Acquired 96 matter. 05015_ Acquired 4 matter. 05020_ X0-1V1: "Fire in the hole!" 05020_ G-47 Trooper destroyed. 05020_ Fusion Modulator explodes. 05020_ Rnf. Deuterium Engine destroyed. 05020_ Arm. Huge Wheel destroyed. 05020_ Fusion Modulator explodes. 05020_ X0-1V1 chuckles heartily! Map ----- +----------------------------------------------------+ | | | | | ?????????????????????????????????????????????????? | | ?????????????????????????????????????????????????? | | ?????????????????????????????????????????????????? | | ?????????????????????????????????????????????????? | | ?????????????????????????????????????????????????? | | ?????????????????????????????????????????????????? | | ?????????????????????????????????????????????????? | | ?????????????????????????????????????????????????? | | ?????????????????????????????????????????????????? | | ?????????????????????????????????????????????????? | | ?????????????????????????????????????????????????? | | ??????????????????????????>??????????????????????? | | ?????????????????????????????????????????????????? | | ????????????????????####?????????????????????????? | | ????????????????##### ;##???????????????????????? | | ????????????????# ;;;;;;;;+#?????????????????????? | | ????????????######; #?????????????????????? | | ???????????? ; #?????????????????????? | | ???????????? ; #?????????????????????? | | ??????????? %##????????????????????? | | ??????????? #????????????????????? | | ?????????? #????????????????????? | | ?????????? #????????????????????? | | ?????????? @ #????????????????????? | | ?????????? ; ##????????????????????? | | ?????????? % ;;; l ;#?????????????????????? | | ????????#####+####;; % #?????????????????????? | | ???????? =% ?????????????????????? | | ???????? k ?????????????????????? | | ?????????" """"""""" %g% #????????????????????? | | ?????? t % ##????????????????????? | | ?????????" """"""""" %%####?????????????????????? | | ????? % %#????????????????????????? | | ??????"""" """"""""" %##########???????????????? | | ?????? %# [[[ #???????????????? | | ?????? b# [[ #???????????????? | | ?????? % g%# [[ #???????????????? | | ????? ^ %# #???????????##### | | ?? ??""""" %######## # #???????????# | | ?" """"" ######## #= #???????????# """ | | "" """ " # % ]/%+% ! /#######?????# """ | | T # ^ # # # # # ##????# """ | | [#% %#%# # # #????# | | %%/= ^ # ####"########## ##???# """ | | % %!#! # #??## ## #??## """ | | % # % # #???# " # #####" """ | | ######## #???# "" # # | | """ #??????#%#???# G # """%#=*[ | +----------------------------------------------------+ Best States ------------- Heat Dissipation 82 Energy Generation 17 Energy Capacity 1700 Matter Stores 651 Matter Capacity 800 Sight Range 18 Robot Scan Range 15 Terrain Scan Range 16 Terrain Scan Density 110 Base Temperature (-) 100 Armor Coverage 225 Evasion (%) 40 Recoil Reduction 4 Item Schematics ----------------- None Robot Schematics ------------------ None Fabricated ------------ Nothing Repaired ---------- Nothing Studied --------- Lgt. Treads | -7/Factory | Hacked Alien Tech Used ----------------- None Achievements -------------- None Challenges ------------ None Game ------ Seed InsulatedCooledCompressor Manual? 0 Play Time 01:04:50 Cumulative 149.0 hours Start 2026.09.06 @ 23:42:59 End 2026.09.07 @ 01:29:30 Sessions 1 Manual Loads 0 Difficulty Rogue Special Mode None Game No. 130 Rogue 128 Adventurer 2 Explorer 0 Win Type - Total 0 Types 0/0/0/0/0/0/0/0/0/0 Lore% 60 Gallery% 51 Achievement% 42 Wizard Run 0 Options --------- Layout 0 ASCII 0 Keyboard 0 Movement Mouse Keybinds 0 Fullscreen 2 Font 24/Smallcaps Map View 76x50 Zoom Use 0% Tactical HUD 1 Map Filters NONE Filters NONE Steam 1 RUN: 96cd9628-5ba4-4d45-a538-7ab8a2608efe